Cogmind - Beta 17 @@@ ROGUE MODE // 2026.07.11 @ 10:56:18 Player: osman sinnoks Result: Destroyed by X-57 Shotgunner with Shotgun Performance ------------- Evolutions (2) 1000 Regions Visited (6) 1200 Robots Destroyed (30) 150 Value Destroyed (860) 860 Prototype IDs (2) 40 Alien Tech Used (0) 0 Bonus (500) 500 TOTAL SCORE: 3750 Bonus ------- Entered Garrisons 200 Aligned with FarCom 300 Cogmind --------- Core Integrity 0/550 Matter 300/300 Energy 100/100 System Corruption 1% Temperature Cool (0) Movement Core (50) Location -8/Garrison Parts ------- > --- POWER (1) -------- (None) > --- PROPULSION (3) --- (None) > --- UTILITY (5) ------ Targeting Computer Targeting Computer > --- WEAPON (2) ------- (None) > --- INVENTORY (5) ---- Ion Engine Deuterium Engine Hover Unit Large Matter Pod (150) Peak State ------------ > --- POWER ------------ Improved Ion Engine > --- PROPULSION ------- Hover Unit Airjet Airjet > --- UTILITY ---------- Targeting Computer Targeting Computer Targeting Computer Cloak of Protection Improved Light Armor Plating > --- WEAPON ----------- EM Pulse Gun Medium Laser > --- INVENTORY -------- Ion Engine Deuterium Engine Large Matter Pod Mining Claw [Rating: 25] Favorites ----------- Power Ion Engine Engine Ion Engine Propulsion Hover Unit Treads Light Treads Leg Carbon-fiber Leg Hover Unit Hover Unit Flight Unit Flight Unit Utility Targeting Computer Device Seismic Detector Storage Large Storage Unit Processor Targeting Computer Protection Improved Light Armor Plating Weapon Medium Laser Energy Gun Medium Laser Ballistic Gun Assault Rifle Launcher Grenade Launcher Slashing Weapon Mining Claw Build | -11 -10 -10 -10 -9 -8 -8 ------- Run | Yrd Mat Min Exi Min Mat Gar Slots Evolved 4 | . . . . . 4 . Power . | . . . . . . . Propulsion 1 | . . . . . 1 . Utility 3 | . . . . . 3 . Weapon . | . . . . . . . Parts Attached 28 | 7 9 . 3 . 6 3 Power 4 | 1 2 . . . 1 . Engine 4 | 1 2 . . . 1 . Core . | . . . . . . . Reactor . | . . . . . . . Propulsion 9 | 2 3 . . . 3 1 Treads 2 | 2 . . . . . . Leg 1 | . . . . . . 1 Wheel . | . . . . . . . Hover 5 | . 2 . . . 3 . Flight 1 | . 1 . . . . . Utility 9 | 2 2 . 3 . 2 . Device 3 | 1 . . 2 . . . Storage 2 | 1 1 . . . . . Processor 3 | . 1 . 1 . 1 . Hackware . | . . . . . . . Protection 1 | . . . . . 1 . Artifact . | . . . . . . . Weapon 6 | 2 2 . . . . 2 Energy Gun 2 | 1 1 . . . . . Energy Cannon . | . . . . . . . Ballistic Gun 2 | 1 . . . . . 1 Ballistic Cannon . | . . . . . . . Launcher 1 | . 1 . . . . . Special Weapon . | . . . . . . . Impact Weapon . | . . . . . . . Slashing Weapon 1 | . . . . . . 1 Piercing Weapon . | . . . . . . . Special Melee Weapon . | . . . . . . . Unidentified Prototypes 2 | . . . 2 . . . Corrupted Parts 1 | . . . . . 1 . System Corruption 1 | . . . . . 1 . Parts Lost 17 | . 5 . . . . 12 Power 1 | . . . . . . 1 Propulsion 6 | . 2 . . . . 4 Utility 4 | . 1 . . . . 3 Weapon 6 | . 2 . . . . 4 Highest Loss Streak 11 | . 3 . . . . 11 To Critical Strikes . | . . . . . . . Average Backups 3 | 1 3 5 5 5 4 4 Power 1 | . 1 1 1 1 1 2 Propulsion . | . . . . . . 1 Utility 1 | . . 3 3 3 2 1 Weapon . | 1 1 1 1 1 1 . Tool/Special . | . . . . . . . Unused Backups 4 | . 1 . . . 1 2 Power 2 | . . . . . 1 1 Propulsion . | . . . . . . . Utility 1 | . . . . . . 1 Weapon 1 | . 1 . . . . . Tool/Special . | . . . . . . . Average Slot Usage (%) 85 | . 83 85 91 100 86 80 Engine 11 | . 13 14 14 14 9 7 Treads 9 | . 19 . . . . . Hover 14 | . 1 28 28 28 24 20 Device 4 | . 7 . 1 . . 6 Storage 5 | . 12 . . . . . Processor 12 | . . 14 19 28 25 26 Protection 2 | . . . . . 8 7 Energy Gun 20 | . 21 28 28 28 18 8 Ballistic Gun 1 | . 2 . . . . . Launcher 1 | . 2 . . . . . Peak Build Rating 25 | 7 7 6 14 8 25 25 Average Rating 9 | 4 5 6 7 8 14 19 On Entrance 8 | . 7 6 6 8 8 25 Avg Prop Armor Cover (%) 4 | . . . . . 4 . Naked Turns . | . . . . . . . Heaviest Build 31 | 13 31 9 9 9 22 22 Greatest Support 40 | 40 40 12 12 12 23 23 Greatest Overweight (x) 6 | . 1 . . . 1 6 Average Overweight (x) . | . . . . . . . Largest Inventory Capacity 15 | 8 15 5 5 5 5 5 Average Capacity 7 | 7 11 5 5 5 5 5 Most Carried 5 | 5 5 5 5 5 5 5 Average Carried 3 | 2 3 5 5 5 4 4 Final Capacity 8 | 8 5 5 5 5 5 5 Final Carried 5 | 2 5 5 5 5 5 4 Class Distribution -------------------- 94% | Mutant 5% | Scavenger-Mutant Dominant Class ---------------- Mutant | -10/Materials Mutant | -10/Mines Mutant | -10/Exiles Mutant | -9/Mines Scavenger-Mutant | -8/Materials Mutant | -8/Garrison Resources | -11 -10 -10 -10 -9 -8 -8 ----------- Run | Yrd Mat Min Exi Min Mat Gar Matter Collected 733 | 290 141 . . . 285 17 Remotely . | . . . . . . . Salvage Created 946 | 71 497 . . . 210 168 Parts 65 | 8 39 . . . 13 5 Haulers Intercepted . | . . . . . . . Recyclers Shooed 1 | 1 . . . . . . Parts Field Recycled . | . . . . . . . Retrieved Matter . | . . . . . . . Parts Self-Destructed . | . . . . . . . Prevented . | . . . . . . . Parts Restored . | . . . . . . . Kills | -11 -10 -10 -10 -9 -8 -8 ------- Run | Yrd Mat Min Exi Min Mat Gar Combat Hostiles Destroyed 20 | . 15 . . . 2 3 Guns 17 | . 12 . . . 2 3 AOE 3 | . 3 . . . . . Classes Destroyed 10 | 2 6 . . . 1 1 Worker 1 | . 1 . . . . . Builder 2 | . 2 . . . . . Tunneler 1 | 1 . . . . . . Recycler 3 | 1 1 . . . 1 . Operator 2 | . 1 . . . 1 . Watcher 1 | . 1 . . . . . Swarmer 9 | . 9 . . . . . Grunt 8 | . 6 . . . . 2 Sentry 2 | . . . . . 2 . Hunter 1 | . . . . . . 1 Best Kill Streak 9 | 2 9 . . . 2 2 Combat Bots Only 5 | . 5 . . . 1 2 Max Kills in Single Turn 3 | 1 3 . . . 1 1 Gunslinging 1 | . 1 . . . . . Exploded 1 | . 1 . . . . . Melee . | . . . . . . . Uniques/NPCs Destroyed . | . . . . . . . Combat | -11 -10 -10 -10 -9 -8 -8 -------- Run | Yrd Mat Min Exi Min Mat Gar Hostile Shots Fired 265 | . 73 . . . 6 186 Missed 98 | . 29 . . . 1 68 Hits 167 | . 44 . . . 5 118 Projectile 167 | . 44 . . . 5 118 Critical Strikes 4 | . . . . . 1 3 Damage Taken 2391 | . 784 7 . . 75 1525 Core 679 | . 122 . . . 19 538 Absorbed by Shields . | . . . . . . . Core Remaining (%) 75 | 100 . . . 51 . . Volleys Fired 83 | 7 42 . . . 10 24 Largest 2 | 1 2 . . . 2 2 Hottest 90 | 20 90 . . . 90 90 Shots Fired 132 | 7 79 . . . 20 26 Gun 127 | 7 74 . . . 20 26 Cannon . | . . . . . . . Launcher 5 | . 5 . . . . . Special . | . . . . . . . Kinetic 19 | 7 12 . . . . . Thermal 76 | . 42 . . . 10 24 Explosive 5 | . 5 . . . . . Electromagnetic 32 | . 20 . . . 10 2 Robot Hit Streak 11 | 3 8 . . . 11 7 Robot Miss Streak 6 | 1 6 . . . 1 2 Penetration Max . | . . . . . . . Secondary Targets 2 | . 2 . . . . . Max Gunslinging Chain 1 | . 1 . . . . . Shots Hit Robots 85 | 5 45 . . . 16 19 Core Hits 48 | 3 25 . . . 9 11 Critical Kills . | . . . . . . . Critical Parts Destroyed . | . . . . . . . Critical Strikes 1 | . . . . . . 1 Burn 1 | . . . . . . 1 Melee Attacks 13 | . . . . . . 13 Impact . | . . . . . . . Slashing 13 | . . . . . . 13 Piercing . | . . . . . . . Sneak Attacks . | . . . . . . . Combat Hostiles . | . . . . . . . Follow-up Attacks . | . . . . . . . Damage Inflicted 1557 | 56 984 15 . . 234 268 Guns 1045 | 56 542 . . . 212 235 Cannons . | . . . . . . . Explosions 462 | . 442 . . . 20 . Melee 22 | . . . . . . 22 Ramming 28 | . . 15 . . 2 11 Kinetic 155 | 56 99 . . . . . Thermal 854 | . 513 . . . 118 223 Explosive 225 | . 225 . . . . . Electromagnetic 273 | . 147 . . . 114 12 Impact . | . . . . . . . Slashing 22 | . . . . . . 22 Piercing . | . . . . . . . Highest Corruption 1 | . . . . . 1 1 Average Corruption 1 | . . . . . 1 1 Corruption Purged . | . . . . . . . Corruption Blocked . | . . . . . . . Effects 4 | . . . . . 1 3 Matter Fused 2 | . . . . . . 2 Heat Flow Errors 2 | . . . . . 1 1 Overload Shots . | . . . . . . . Overflow Damage 83 | . 83 . . . . . Projectiles . | . . . . . . . Explosions 83 | . 83 . . . . . Melee . | . . . . . . . Knockbacks 1 | . . 1 . . . . Impact 1 | . . 1 . . . . Kinetic . | . . . . . . . Secondary . | . . . . . . . Self-Inflicted Damage 155 | . 143 7 . . 1 4 Shots 3 | . 3 . . . . . Rammed 5 | . . 1 . . 1 3 Targets Rammed 5 | . . 1 . . 1 3 Kicked . | . . . . . . . Crushed . | . . . . . . . Highest Temperature 307 | . 307 . . . 218 236 Average Temperature 80 | . 78 . . . 64 96 Received Heat Transfer 672 | . 159 . . . 45 468 Effects 1 | . . . . . . 1 Energy Bleed 1 | . . . . . . 1 Siege Activations . | . . . . . . . Martial Activations . | . . . . . . . Shielding Activations . | . . . . . . . Robots Disrupted . | . . . . . . . Combat Hostiles . | . . . . . . . Robots Corrupted . | . . . . . . . Combat Hostiles . | . . . . . . . Parts Fried 1 | . . . . . 1 . Impact Corruptions . | . . . . . . . Robots Melted . | . . . . . . . Combat Hostiles . | . . . . . . . Parts Melted 5 | . 2 . . . . 3 Heat Transferred 2174 | . 1088 . . . 346 740 Parts Sabotaged . | . . . . . . . Parts Stolen . | . . . . . . . Parts Stripped . | . . . . . . . Power Chain Reactions 1 | . . . . . 1 . Alert | -11 -10 -10 -10 -9 -8 -8 ------- Run | Yrd Mat Min Exi Min Mat Gar Maximum Alert Level 1 | . . . . . . 1 Low Security (%) 97 | 100 100 100 . 100 100 89 Level 1 2 | . . . . . . 10 Level 2 . | . . . . . . . Level 3 . | . . . . . . . Level 4 . | . . . . . . . Level 5 . | . . . . . . . High Security . | . . . . . . . Max Security . | . . . . . . . Peak Influence 214 | 5 177 53 . . 47 214 Initial 53 | . . 53 . . . 14 Average 70 | . 83 23 . . 20 130 Influence Increases 900 | 10 483 . . . 92 315 Destroy 0b10 Robot/C 400 | . 300 . . . 40 60 Destroy 0b10 Robot/NC 50 | 10 30 . . . 10 . Destroy Leader 82 | . 52 . . . 20 10 Successful Hack 31 | . 26 . . . 5 . Disable Machine 45 | . 30 . . . 15 . Anti-Garrison Action 100 | . . . . . . 100 Destroy Structure 57 | . 45 . . . 2 10 Partial Spotted 30 | . . . . . . 30 Lose Combat Pursuer 105 | . . . . . . 105 Influence Decreases 691 | 10 346 137 . . 70 128 Entered New Map 92 | . . 84 . . . 8 Time Decay 429 | 10 296 53 . . 70 . Lost Part 170 | . 50 . . . . 120 Squads Dispatched 2 | . 2 . . . . . Investigation 2 | . 2 . . . . . Extermination . | . . . . . . . Reinforcement . | . . . . . . . Assault . | . . . . . . . Garrison . | . . . . . . . Intercept . | . . . . . . . Searches Triggered . | . . . . . . . Construction Impeded . | . . . . . . . Haulers Reinforced . | . . . . . . . Active Scanning Responses . | . . . . . . . Cargo Convoy Interrupts . | . . . . . . . Stealth | -11 -10 -10 -10 -9 -8 -8 --------- Run | Yrd Mat Min Exi Min Mat Gar Distress Signals 4 | . 2 . . . 2 . Communications Jammed . | . . . . . . . Distress Signals . | . . . . . . . Times Spotted 46 | . 22 . . . 4 20 Peak Tracking Total 11 | . 6 . . . 2 11 Tactical Retreats 2 | . . . . . . 2 Traps | -11 -10 -10 -10 -9 -8 -8 ------- Run | Yrd Mat Min Exi Min Mat Gar Traps Triggered 4 | . 2 . . . . 2 Indirectly . | . . . . . . . Trap Hack Attempts . | . . . . . . . Triggered . | . . . . . . . Disarmed . | . . . . . . . Reprogrammed . | . . . . . . . Reused . | . . . . . . . Traps Extracted . | . . . . . . . Installed . | . . . . . . . Triggered . | . . . . . . . Machines | -11 -10 -10 -10 -9 -8 -8 ---------- Run | Yrd Mat Min Exi Min Mat Gar Machines Disabled 4 | . 2 . . . 1 1 Max in Single Turn 1 | . 1 . . . 1 1 Garrison Relay 1 | . . . . . . 1 Machines Repaired . | . . . . . . . Machines Dismantled . | . . . . . . . Machines Sabotaged . | . . . . . . . Overloaded Fab Kills . | . . . . . . . Hacking | -11 -10 -10 -10 -9 -8 -8 --------- Run | Yrd Mat Min Exi Min Mat Gar Machines Accessed 13 | . 5 . . 1 3 4 Terminals 9 | . 4 . . . 1 4 Fabricators . | . . . . . . . Repair Stations . | . . . . . . . Recycling Units 1 | . 1 . . . . . Scanalyzers 1 | . . . . . 1 . Garrison Access 1 | . . . . . 1 . Total Hacks 24 | . 11 . . 1 6 6 Successful 11 | . 7 . . 1 3 . Failed 13 | . 4 . . . 3 6 Catastrophic 5 | . 3 . . . . 2 Database Lockouts . | . . . . . . . Manual 11 | . 6 . 1 . 4 . Terminals 19 | . 9 . . . 4 6 Fabricators . | . . . . . . . Repair Stations . | . . . . . . . Recycling Units 2 | . 2 . . . . . Scanalyzers 1 | . . . . . 1 . Garrison Access 1 | . . . . . 1 . Terminal Hacks 4 | . 3 . . 1 . . Open Door 1 | . . . . 1 . . Branch Access Points 1 | . 1 . . . . . Patrol Status 1 | . 1 . . . . . Recall Investigation 1 | . 1 . . . . . Fabricator Hacks . | . . . . . . . Repair Station Hacks . | . . . . . . . Recycling Unit Hacks 1 | . 1 . . . . . Report Inventory 1 | . 1 . . . . . Scanalyzer 1 | . . . . . 1 . Retrieve Study 1 | . . . . . 1 . Garrison Access Hacks 1 | . . . . . 1 . Unlock Access 1 | . . . . . 1 . Unauthorized Hacks 4 | . 3 . . . 1 . Terminals 4 | . 3 . . . 1 . Botnet 4 | . 3 . . . 1 . Fabricators . | . . . . . . . Repair Stations . | . . . . . . . Recycling Units . | . . . . . . . Scanalyzers . | . . . . . . . Garrison Access . | . . . . . . . Data Cores Recovered 1 | . 1 . . . . . Used . | . . . . . . . Hacking Detections 8 | . 3 . . . 2 3 Full Trace Events 3 | . 2 . . . . 1 Feedback Events . | . . . . . . . Feedback Blocked . | . . . . . . . Robot Schematics Acquired . | . . . . . . . Robots Built . | . . . . . . . Authchips . | . . . . . . . Time . | . . . . . . . Total Robot Build Rating . | . . . . . . . Part Schematics Acquired . | . . . . . . . Parts Built . | . . . . . . . Authchips . | . . . . . . . Time . | . . . . . . . Total Part Build Rating . | . . . . . . . Part Studies Acquired 1 | . . . . . 1 . Parts Repaired . | . . . . . . . Time . | . . . . . . . Parts Recycled . | . . . . . . . Recycled Matter . | . . . . . . . Retrieved Matter . | . . . . . . . Retrieved Components . | . . . . . . . Parts Scanalyzed . | . . . . . . . Part Schematics Acquired . | . . . . . . . Parts Damaged . | . . . . . . . Bothacking | -11 -10 -10 -10 -9 -8 -8 ------------ Run | Yrd Mat Min Exi Min Mat Gar Used RIF Installer . | . . . . . . . Robots Hacked . | . . . . . . . Non-combat . | . . . . . . . Combat . | . . . . . . . Robot Hacks Applied . | . . . . . . . Relay Couplers Released 5 | . . . . . . 5 Machine Destruction 5 | . . . . . . 5 Fabnet Peak Effective % . | . . . . . . . Robots Rewired . | . . . . . . . Allies Hacked . | . . . . . . . Hacks Repelled . | . . . . . . . Allies | -11 -10 -10 -10 -9 -8 -8 -------- Run | Yrd Mat Min Exi Min Mat Gar Total Allies 1 | . . 1 . . . . Largest Group 1 | . . 1 . . . . Highest-Rated Group 31 | . . 31 . . . . Highest-Rated Ally 31 | . . 31 . . . . Total Orders . | . . . . . . . Ally Attacks . | . . . . . . . Total Damage . | . . . . . . . Kills . | . . . . . . . Allies Corrupted . | . . . . . . . Allies Melted . | . . . . . . . Intel | -11 -10 -10 -10 -9 -8 -8 ------- Run | Yrd Mat Min Exi Min Mat Gar Active Infowar (turns) 422 | 33 386 . 2 . 1 . Seismic 419 | 33 386 . . . . . Cloaking 3 | . . . 2 . 1 . Robot Analysis Total . | . . . . . . . Derelict Logs Recovered 1 | . . . . 1 . . Drone Launches . | . . . . . . . Drone Recoveries . | . . . . . . . Exploration | -11 -10 -10 -10 -9 -8 -8 ------------- Run | Yrd Mat Min Exi Min Mat Gar Turns Passed 1656 | 94 742 139 120 105 153 303 Spaces Moved 1417 | 53 426 242 206 104 87 299 Core 140 | 18 34 . . . . 88 Treads 315 | 35 280 . . . . . Legs 7 | . . . . . . 7 Wheels . | . . . . . . . Hover 929 | . 86 242 206 104 87 204 Flight 26 | . 26 . . . . . Fastest Speed 40 | 50 40 56 56 56 52 50 Average Speed 84 | 122 137 56 56 56 68 56 Slowest Speed 350 | 160 240 56 56 56 116 350 Overloaded Moves . | . . . . . . . Propulsion Burnouts . | . . . . . . . Robots Hopped . | . . . . . . . Potential Cave-ins . | . . . . . . . Cave-ins Triggered . | . . . . . . . Exploration Rate (%) 39 | 4 77 57 59 28 7 42 Regions Visited 6 Branch Regions 3 Pre-discovered Areas . | . . . . . . . Known Exits Taken 2 | . 1 . . . 1 . Unknown Exits Taken 4 | 1 . 1 1 1 . . Scrap Searched 1 | . . . . 1 . . Spaces Dug . | . . . . . . . Terrain Destroyed 48 | . 47 . . . 1 . Melee . | . . . . . . . Projectile . | . . . . . . . AOE 48 | . 47 . . . 1 . Terrain Rammed . | . . . . . . . Walls Destroyed . | . . . . . . . Machines Disabled . | . . . . . . . Actions | -11 -10 -10 -10 -9 -8 -8 --------- Run | Yrd Mat Min Exi Min Mat Gar Total 1719 | 75 501 245 209 150 159 380 Wait 113 | . 4 3 . 47 49 10 Move 1410 | 52 425 241 205 103 86 298 Hop . | . . . . . . . Pick Up 24 | 9 11 . . . 3 1 Fast Attach 8 | . 3 . 2 . 2 1 Attach 17 | 7 6 . . . 2 2 Detach 1 | . 1 . . . . . Swap 7 | . 3 . 1 . 3 . Drop 10 | . 6 . 1 . 3 . Fire 83 | 7 42 . . . 10 24 Melee 13 | . . . . . . 13 Ram 5 | . . 1 . . 1 3 Kick . | . . . . . . . Crush . | . . . . . . . Escape Stasis 26 | . . . . . . 26 Rewire 2 | . . . . . . 2 Trap . | . . . . . . . Miscellaneous . | . . . . . . . Route ------- -11/Scrapyard -10/Materials (discovered 3 exits: [*Mat] / *Min x2) -10/Mines (discovered 2 exits: [*Mat] / *Exi) -10/Exiles -9/Mines -8/Materials -8/Garrison (discovered 1 exit: [*Mat]) History --------- Turn | Location | Event 9 | -11/Scrapyard | Discovered new exit (range 16) 95 | -11/Scrapyard | Entered Materials 156 | -10/Materials | Identified exit to Mines 310 | -10/Materials | Build established: Mutant 444 | -10/Materials | Discovered new exit (range 10) 517 | -10/Materials | Lost 3 parts (1n1u1w) 837 | -10/Materials | Entered Mines 840 | -10/Mines | Received a Mining Laser from a helpful Derelict 947 | -10/Mines | Discovered new exit (range 10) 974 | -10/Mines | Deemed a non-threat by the Exiles lab entrance 974 | -10/Mines | Discovered new exit (range 5) 976 | -10/Mines | Entered Exiles 991 | -10/Exiles | Met 8R-AWN 1000 | -10/Exiles | Met EX-HEX 1016 | -10/Exiles | Met EX-BIN 1023 | -10/Exiles | Aligned with FarCom system 1024 | -10/Exiles | Given EX-Vault access code 1036 | -10/Exiles | Opened EX-Vault 1038 | -10/Exiles | Found Prototype Device 1038 | -10/Exiles | Identified Supersonic Drone Bay 1042 | -10/Exiles | Found Prototype Device 1042 | -10/Exiles | Identified Cloak of Protection 1056 | -10/Exiles | Warned to stay clear of 0b10 Research branches 1073 | -10/Exiles | Met EX-DEC 1091 | -10/Exiles | Discovered new exit (range 11) 1096 | -10/Exiles | Left Exiles lab with Cloak of Protection 1096 | -10/Exiles | Entered Mines 1127 | -9/Mines | Found the Drone Emporium 1147 | -9/Mines | Learned Materials stockpile data 1200 | -9/Mines | Discovered new exit (range 3) 1201 | -9/Mines | Entered Materials 1201 | -8/Materials | Evolved 4 slots: Propulsion x1, Utility x3 1353 | -8/Materials | Identified exit to Garrison 1354 | -8/Materials | Entered Garrison 1455 | -8/Garrison | Triggered checkpoint 1477 | -8/Garrison | Garrison Relay disabled 1546 | -8/Garrison | Triggered checkpoint 1548 | -8/Garrison | Triggered checkpoint 1601 | -8/Garrison | Core integrity fell below 50% 1615 | -8/Garrison | Discovered new exit (range 12) 1629 | -8/Garrison | Attempted to access garrison exit controls, blocked by remote lockdown 1639 | -8/Garrison | Core integrity fell below 20% 1646 | -8/Garrison | Triggered checkpoint 1657 | -8/Garrison | Destroyed by X-57 Shotgunner with Shotgun Last Messages --------------- 01592_ Acquired Carbon-fiber Leg. 01594_ Acquired Gauss Rifle. 01596_ Critical hit (Burn: +37). 01598_ Mining Claw destroyed. 01600_ Critical hit (Burn: +37). 01604_ Carbon-fiber Leg destroyed. 01605_ Gauss Rifle destroyed. 01615_ EXIT=FOUND 01625_ Acquired 5 matter. 01629_ Attempting to access garrison exit controls... 01629_ Remote lockdown engaged. 01635_ Targeting Computer destroyed. 01646_ Beams of light sweep through the air. An alarm sounds. 01651_ Slammed into S-10 Pest. 01656_ Attempting to rewire C-45 Heavy ARC. 01656_ C-45 Heavy ARC is unpowered. 01657_ Attempting to rewire C-45 Heavy ARC. 01657_ C-45 Heavy ARC is unpowered. Map ----- +----------------------------------------------------+ | | | | | | | | | ?????????????????????????????????????????????????? | | ?????????????????????????????????????????????????? | | ?????????????????????????????????????????????????? | | ?????????????????????????????????????????????????? | | ?????????????????????????????????????????????????? | | ?????????????????????????????????????????????????? | | ?????????????????????????????????????????????????? | | ?????????????????????????????????????????????????? | | ?????????????????????????????????????????????????? | | ?????????????????????????????????????????????????? | | ????####?????????????????????????????????????????? | | ????#""#?????????????????????????????????????????? | | ????#T #?????????????????????????????????????????? | | ????#" #?????????????????????????????????????????? | | ????## #?????????????????????????????????????????? | | ?????# ###?????????????????#######???????????????? | | ?????# #"#?????????????????#"""""#???????????????? | | ?????# !"#???????????????#### ##???????????????? | | ?????#!! #???????????????# %% #???????????????? | | ?????#!!"#?????????C?????# #######???????????????? | | ?????# #"#?????????????###s#?????????######??????? | | ?????# ###?????????????#C@x#?????????# #??????? | | ?????# #?????????????? +C #?????????# < #??????? | | ?????# #?????????????### #?????????# #??????? | | ?????# #???????????????###g#?????????# ########## | | ???### #?????????????????#x#?????????# #??#"""""" | | ???# #?????????????????#Y#?????????# #??#"!!!!! | | ???# #?????????????????# #####?????# #### | | ???# #?????????????????# ggg #?????# = | | ???### #?????????????????##### #?????# *% | | ?????# #?????????????????????# #?????# #### | | ###### ######????????????????# #?????# #??# | | "#????????????????# #?????# #??# | | #########"T"#????############# ####### #??#"!!!!! | | ????????#####????# #??#"""""" | | #????????????????# #??####### | | #????????????????# ######### ##########????????? | | #????????????????# #???????# #?????????????????? | | ?????????????????# #???????# #?????????????????? | | ?????????????????#^ #???????# #?????????????????? | | ???????????####### #???????# #?????????????????? | | ???????????# ## #???????# #?????????????????? | | ??????###### ## ##??????# #?????????????????? | | ####### ######?# #?????????????????? | | " #?????????????????? | | * % % "%" #?????????????????? | +----------------------------------------------------+ Best States ------------- Heat Dissipation 31 Energy Generation 12 Energy Capacity 265 Matter Stores 300 Matter Capacity 300 Sight Range 16 Terrain Scan Density 10 Armor Coverage 150 Evasion (%) 62 Targeting Accuracy 15 Recoil Reduction 2 Item Schematics ----------------- None Robot Schematics ------------------ None Fabricated ------------ Nothing Repaired ---------- Nothing Studied --------- Hover Unit | -8/Materials | Hacked Alien Tech Used ----------------- None Achievements -------------- None Challenges ------------ None Game ------ Seed AntigravArcsightDerivative Manual? 0 Play Time 00:24:02 Cumulative 40.4 hours Start 2026.07.11 @ 10:28:30 End 2026.07.11 @ 10:56:18 Sessions 1 Manual Loads 0 Difficulty Rogue Special Mode None Game No. 89 Rogue 89 Adventurer 0 Explorer 0 Win Type - Total 0 Types 0/0/0/0/0/0/0/0/0/0 Lore% 28 Gallery% 31 Achievement% 23 Wizard Run 0 Options --------- Layout 2 ASCII 0 Keyboard 0 Movement Mouse Keybinds 0 Fullscreen 1 Font 48/Smallcaps Map View 50x44 Zoom Use 0% Tactical HUD 1 Map Filters NONE Filters NONE Steam 1 RUN: 9dc2f9f3-bb3b-499d-8537-15f3b5794379